fUSD/lending_fUSD_20250504
["ID","MTS","AMOUNT","RATE_DAILY","PERIOD"]
[359779892,1746335443177,-450.0,0.00019985,2]
[359779893,1746335443186,-450.0,0.00019985,2]
[359779894,1746335443195,-1159.74,0.00019985,2]
[359779895,1746335443204,-470.89,0.00019985,2]
[359779896,1746335443213,-450.0,0.00019985,2]
[359779897,1746335443222,-450.0,0.00019985,2]
[359779898,1746335443231,-536.87,0.00019985,2]
[359779899,1746335443243,-450.0,0.00019985,2]
[359779900,1746335443252,-450.0,0.00019985,2]
[359779903,1746335443261,-565.05,0.00019985,2]
[359779905,1746335443271,-917.52,0.00019985,2]
[359779907,1746335443280,-450.0,0.00019985,2]
[359779909,1746335443289,-649.72,0.00019985,2]
[359779910,1746335443299,-4771.2087569,0.00019986,2]
[359779912,1746335443308,-73638.80298,0.00019986,2]
[359779914,1746335443317,-2992.8597197,0.00019986,2]
[359779916,1746335443326,-168.91563715,0.0001999,2]
[359779918,1746335443335,-311.93520587,0.00019999,2]
[359779921,1746335443344,-300.0,0.00019999,2]
[359779923,1746335443354,-300.0,0.00019999,2]
[359779925,1746335443363,-500.0,0.00019999,2]
[359779927,1746335443372,-500.0,0.00019999,2]
[359779929,1746335443382,-666.0,0.00019999,2]
[359779931,1746335443391,-500.0,0.00019999,2]
[359779933,1746335443400,-283.08598319,0.00019999,2]
[359779934,1746335443409,-300.0,0.00019999,2]
[359779935,1746335443419,-453.01171395,0.00019999,2]
[359779936,1746335443428,-170.36110785,0.00019999,2]
[359779937,1746335443437,-499.75,0.00019999,2]
[359779938,1746335443447,-410.61090905,0.00019999,2]
[359779939,1746335443455,-819.0,0.00019999,2]
[359779940,1746335443466,-1142.06810715,0.0002,2]
[359779942,1746335443478,-3104556.69608873,0.0002,2]
[359779945,1746335443488,-290638.92332857,0.0002,2]
[359779948,1746335443507,-596.76669111,0.0002,2]
[359779950,1746335443519,-1633.00973577,0.0002,2]
[359779951,1746335443663,-13863.47012009,0.0002,2]
[359779952,1746335443677,-480.545,0.0002,2]
[359779953,1746335443690,-679.49055155,0.0002,2]
[359779961,1746335443995,-264.36355451,0.0002,2]
[359779962,1746335444006,-7800.0,0.0002,2]
[359779963,1746335444021,-658.37860201,0.0002,2]
[359779964,1746335444036,-1384.28247185,0.0002,2]
[359779965,1746335444048,-225321.8401484,0.0002,2]
[359779966,1746335444094,-1134.73737881,0.0002,2]
[359779971,1746335446589,-71424.88,0.0002,2]
[359779972,1746335446601,-840.137525,0.0002,2]
[359779973,1746335446618,-775.66,0.00019985,2]
[359779974,1746335446627,-1255305.18478557,0.0002,2]
[359779975,1746335446639,-7349.88311069,0.0002,2]
[359780036,1746335536788,511.98,0.00017171,2]
[359780037,1746335536990,511.98,0.00019435,2]
[359780038,1746335537833,236.89,0.00019089,2]
[359780039,1746335573900,200.28,0.00019074,2]
[359780040,1746335612480,1038.54,0.00019,2]
[359780041,1746335637709,-321.5184588,0.00019799,2]
[359780042,1746335637732,-200.0,0.0001985,2]
[359780043,1746335637753,-250.0,0.0001985,2]
[359780044,1746335637783,-500.0,0.00019899,2]
[359780045,1746335637809,-500.0,0.00019899,2]
[359780046,1746335637836,-500.0,0.00019899,2]
[359780047,1746335637862,-500.0,0.00019899,2]
[359780048,1746335637889,-500.0,0.00019899,2]
[359780049,1746335637916,-500.0,0.00019899,2]
[359780050,1746335637944,-500.0,0.00019899,2]
[359780051,1746335637970,-500.0,0.00019899,2]
[359780052,1746335637997,-500.0,0.00019899,2]
[359780053,1746335638023,-500.0,0.00019899,2]
[359780054,1746335638048,-500.0,0.00019899,2]
[359780055,1746335638075,-500.0,0.00019899,2]
[359780056,1746335638101,-500.0,0.00019899,2]
[359780057,1746335638127,-500.0,0.00019899,2]
[359780058,1746335638153,-500.0,0.00019899,2]
[359780059,1746335638179,-500.0,0.00019899,2]
[359780060,1746335638204,-500.0,0.00019899,2]
[359780061,1746335638230,-500.0,0.00019899,2]
[359780062,1746335638256,-500.0,0.00019899,2]
[359780063,1746335638282,-500.0,0.00019899,2]
[359780064,1746335638308,-500.0,0.00019899,2]
[359780065,1746335638334,-500.0,0.00019899,2]
[359780066,1746335638361,-500.0,0.00019899,2]
[359780067,1746335638387,-500.0,0.00019899,2]
[359780068,1746335638413,-500.0,0.00019899,2]
[359780069,1746335638439,-500.0,0.00019899,2]
[359780070,1746335638465,-500.0,0.00019899,2]
[359780071,1746335638491,-500.0,0.00019899,2]
[359780072,1746335638518,-500.0,0.00019899,2]
[359780073,1746335638544,-500.0,0.00019899,2]
[359780074,1746335638571,-500.0,0.00019899,2]
[359780075,1746335638601,-500.0,0.00019899,2]
[359780076,1746335638629,-500.0,0.00019899,2]
[359780077,1746335638655,-500.0,0.00019899,2]
[359780078,1746335638682,-500.0,0.00019899,2]
[359780079,1746335638721,-500.0,0.00019899,2]
[359780080,1746335638749,-500.0,0.00019899,2]
[359780081,1746335638776,-500.0,0.00019899,2]
[359780082,1746335638804,-500.0,0.00019899,2]
[359780083,1746335638832,-500.0,0.00019899,2]
[359780084,1746335638860,-500.0,0.00019899,2]
[359780085,1746335638887,-500.0,0.00019899,2]
[359780086,1746335638916,-500.0,0.00019899,2]
[359780087,1746335638944,-500.0,0.00019899,2]
[359780088,1746335638972,-500.0,0.00019899,2]
[359780089,1746335638999,-500.0,0.00019899,2]
[359780090,1746335639027,-500.0,0.00019899,2]
[359780091,1746335639056,-500.0,0.00019899,2]
[359780092,1746335639085,-500.0,0.00019899,2]
[359780093,1746335639112,-500.0,0.00019899,2]
[359780094,1746335639139,-500.0,0.00019899,2]
[359780095,1746335639167,-500.0,0.00019899,2]
[359780096,1746335639194,-500.0,0.00019899,2]
[359780097,1746335639222,-500.0,0.00019899,2]
[359780098,1746335639249,-500.0,0.00019899,2]
[359780099,1746335639523,-500.0,0.00019899,2]
[359780100,1746335639552,-500.0,0.00019899,2]
[359780101,1746335639580,-500.0,0.00019899,2]
[359780102,1746335639613,-500.0,0.00019899,2]
[359780103,1746335639641,-500.0,0.00019899,2]
[359780104,1746335639669,-500.0,0.00019899,2]
[359780105,1746335639691,-914.04840122,0.000199,2]
[359780106,1746335639714,-200.51923094,0.000199,2]
[359780107,1746335639735,-275.9853488,0.000199,2]
[359780108,1746335639758,-171.04165752,0.000199,2]
[359780109,1746335639779,-1691.97367214,0.000199,2]
[359780110,1746335639800,-152.61129874,0.000199,3]
[359780111,1746335639821,-287.00351372,0.000199,2]
[359780112,1746335639842,-1372.5673849,0.000199,2]
[359780113,1746335639863,-270.29516336,0.00019905,2]
[359780114,1746335639887,-200.0,0.00019908,2]
[359780115,1746335639909,-3192.43586986,0.00019972,2]
[359780116,1746335654516,458.99,0.00019123,2]
[359780117,1746335662957,585.96,0.00019118,2]
[359780118,1746335724241,250.0,0.00019048,2]
[359780119,1746335908423,167.05,0.00015153,2]
[359780120,1746335912836,200.0,0.00018942,2]
[359780121,1746335961754,166.55,0.00018941,2]
[359780122,1746335962088,166.55,0.00018988,2]
[359780123,1746335962316,166.55,0.00019036,2]
[359780124,1746336008246,172.82,0.00018941,2]
[359780125,1746336140736,438.93,0.00019013,2]
[359780126,1746336310729,1266.95534113,0.000154,2]
[359780127,1746336328234,788.32290378,0.00011,2]
[359780130,1746336357095,491.89990725,6.94e-05,2]
[359780131,1746336369924,250.0,0.00017,2]
[359780132,1746336371014,300.0,0.00019,2]
[359780133,1746336432762,1579.1910533,0.00015,2]
[359780156,1746336458999,200.0,0.00018938,2]
[359780157,1746336497480,1000.0,0.00018929,2]
[359780158,1746336498243,805.34125131,0.000135,2]
[359780159,1746336498424,297.3115703,0.000125,2]
[359780160,1746336505664,1868.52272614,0.0001,2]
[359780161,1746336514532,216.60605147,0.0001,2]
[359780162,1746336515977,1389.77848667,0.000149,2]
[359780176,1746336631499,-191.45630862,0.00019785,2]
[359780177,1746336631508,-257.2147671,0.00019799,2]
[359780178,1746336631518,-151.0,0.00019799,2]
[359780179,1746336631530,-214.9152,0.00019884,2]
[359780180,1746336631539,-637.41372428,0.00019885,2]
[359780181,1746336631668,-1178.40177572,0.00019885,2]
[359780182,1746336631677,-1200.0,0.00019886,2]
[359780183,1746336631687,-207.4,0.00019888,2]
[359780184,1746336631696,-157.55599214,0.0001989,2]
[359780185,1746336631706,-157.55599213,0.00019893,2]
[359780186,1746336631716,-162.91087482,0.00019894,2]
[359780187,1746336631727,-137.08912518,0.00019894,2]
[359780188,1746336631738,-157.55599213,0.00019895,2]
[359780189,1746336631747,-157.55599213,0.00019898,2]
[359780190,1746336631756,-878.78144432,0.00019898,2]
[359780237,1746336632365,-1.03762508,0.00019898,2]
[359780238,1746336632377,-501.84968142,0.00019898,2]
[359780244,1746336637645,-1831.0,0.000199,2]
[359780245,1746336637655,-1831.0,0.000199,2]
[359780246,1746336637664,-1831.0,0.000199,2]
[359780247,1746336637673,-506.9407416,0.000199,2]
[359780248,1746336637702,-948.50895415,0.000199,2]
[359780250,1746336637814,-5243.76087527,0.000199,2]
[359780276,1746336638368,507.87,0.00017179,2]
[359780277,1746336638579,507.87,0.00019443,2]
[359780280,1746336639781,-594.96847343,0.000199,2]
[359780281,1746336640001,-5205.82095555,0.000199,2]
[359780282,1746336640010,-157.55599213,0.000199,2]
[359780283,1746336640019,-152.61129874,0.000199,3]
[359780284,1746336640028,-334.83743266,0.000199,2]
[359780285,1746336640037,-199.54860044,0.000199,2]
[359780286,1746336640048,-1601.32861572,0.000199,2]
[359780287,1746336640057,-2222.693,0.00019972,2]
[359780288,1746336640066,-168.098,0.00019972,2]
[359780289,1746336640075,-500.0,0.00019973,2]
[359780290,1746336640084,-500.0,0.00019973,2]
[359780291,1746336640093,-500.0,0.00019973,2]
[359780292,1746336640102,-500.0,0.00019973,2]
[359780293,1746336640111,-151.0,0.00019973,2]
[359780294,1746336640120,-151.0,0.00019973,2]
[359780295,1746336640129,-668.65185757,0.00019973,2]
[359780296,1746336640138,-500.0,0.00019981,2]
[359780297,1746336640147,-600.40029544,0.00019981,2]
[359780298,1746336640156,-500.0,0.00019981,2]
[359780299,1746336640166,-500.0,0.00019981,2]
[359780300,1746336640175,-500.0,0.00019981,2]
[359780301,1746336640184,-500.0,0.00019981,2]
[359780302,1746336640193,-500.0,0.00019981,2]
[359780303,1746336640202,-500.0,0.00019981,2]
[359780304,1746336640211,-500.0,0.00019981,2]
[359780305,1746336640220,-500.0,0.00019981,2]
[359780306,1746336640229,-500.0,0.00019981,2]
[359780307,1746336640238,-450.0,0.00019982,2]
[359780308,1746336640247,-626.9,0.00019982,2]
[359780309,1746336640256,-450.0,0.00019982,2]
[359780310,1746336640265,-450.0,0.00019982,2]
[359780311,1746336640274,-450.0,0.00019982,2]
[359780312,1746336640283,-450.0,0.00019982,2]
[359780313,1746336640293,-530.34,0.00019982,2]
[359780314,1746336640302,-450.0,0.00019982,2]
[359780315,1746336640311,-450.0,0.00019982,2]
[359780316,1746336640319,-450.0,0.00019982,2]
[359780317,1746336640329,-450.0,0.00019982,2]
[359780318,1746336640340,-450.0,0.00019982,2]
[359780319,1746336640350,-323.09118242,0.00019982,2]
[359780320,1746336640361,-450.0,0.00019982,2]
[359780321,1746336640370,-450.0,0.00019982,2]
[359780322,1746336640378,-450.0,0.00019982,2]
[359780323,1746336640388,-450.0,0.00019982,2]
[359780324,1746336640397,-450.0,0.00019982,2]
[359780325,1746336640406,-597.1,0.00019982,2]
[359780326,1746336640416,-856.68,0.00019982,2]
[359780327,1746336640425,-450.0,0.00019982,2]
[359780328,1746336640435,-450.0,0.00019982,2]
[359780329,1746336640444,-1563.33,0.00019982,2]
[359780330,1746336640454,-450.0,0.00019982,2]
[359780331,1746336640464,-450.0,0.00019982,2]
[359780332,1746336640473,-2692.46,0.00019982,2]
[359780333,1746336640486,-596.38,0.00019982,2]
[359780334,1746336640495,-450.0,0.00019982,2]
[359780335,1746336640506,-450.0,0.00019982,2]
[359780336,1746336640517,-450.0,0.00019982,2]
[359780337,1746336640532,-2563.07,0.00019982,2]
[359780338,1746336640543,-59619.95,0.00019982,2]
[359780339,1746336640552,-450.0,0.00019982,2]
[359780340,1746336640561,-989.94,0.00019982,2]
[359780341,1746336640571,-450.0,0.00019982,2]
[359780342,1746336640580,-450.0,0.00019982,2]
[359780343,1746336640590,-3043.55,0.00019982,2]
[359780344,1746336640599,-1112.2,0.00019982,2]
[359780345,1746336640608,-450.0,0.00019982,2]
[359780346,1746336640617,-14176.44,0.00019982,2]
[359780347,1746336640627,-450.0,0.00019982,2]
[359780348,1746336640636,-936.14,0.00019982,2]
[359780349,1746336640646,-450.0,0.00019982,2]
[359780350,1746336640655,-450.0,0.00019982,2]
[359780351,1746336640664,-450.0,0.00019982,2]
[359780352,1746336640674,-8030.0,0.00019982,2]
[359780353,1746336640683,-530.01,0.00019982,2]
[359780354,1746336640692,-450.0,0.00019982,2]
[359780355,1746336640702,-450.0,0.00019982,2]
[359780356,1746336640711,-450.0,0.00019982,2]
[359780357,1746336640720,-450.0,0.00019982,2]
[359780358,1746336640730,-450.0,0.00019982,2]
[359780359,1746336640739,-678.42,0.00019982,2]
[359780360,1746336640749,-450.0,0.00019982,2]
[359780361,1746336640758,-370.05556011,0.00019982,2]
[359780362,1746336640768,-914.53,0.00019982,2]
[359780363,1746336640777,-450.0,0.00019982,2]
[359780364,1746336640786,-450.0,0.00019982,2]
[359780365,1746336640796,-450.0,0.00019982,2]
[359780366,1746336640806,-598.48,0.00019982,2]
[359780367,1746336640815,-470.89,0.00019982,2]
[359780368,1746336640825,-450.0,0.00019982,2]
[359780369,1746336640835,-450.0,0.00019982,2]
[359780370,1746336640844,-450.0,0.00019982,2]
[359780371,1746336640854,-536.87,0.00019982,2]
[359780372,1746336640863,-450.0,0.00019982,2]
[359780373,1746336640873,-450.0,0.00019982,2]
[359780374,1746336640882,-565.05,0.00019982,2]
[359780375,1746336640892,-450.0,0.00019982,2]
[359780376,1746336640901,-1159.74,0.00019982,2]
[359780377,1746336640911,-450.0,0.00019982,2]
[359780378,1746336640920,-450.0,0.00019982,2]
[359780379,1746336640929,-649.72,0.00019982,2]
[359780380,1746336640938,-450.0,0.00019983,2]
[359780381,1746336640948,-572.7,0.00019983,2]
[359780382,1746336640957,-743.34,0.00019983,2]
[359780383,1746336640967,-450.0,0.00019983,2]
[359780384,1746336640976,-922.02,0.00019983,2]
[359780385,1746336640985,-450.0,0.00019983,2]
[359780386,1746336640995,-450.0,0.00019983,2]
[359780387,1746336641004,-1644.21,0.00019983,2]
[359780388,1746336641013,-722.35,0.00019983,2]
[359780389,1746336641023,-1485.81,0.00019983,2]
[359780390,1746336641032,-450.0,0.00019983,2]
[359780391,1746336641041,-450.0,0.00019983,2]
[359780392,1746336641051,-450.0,0.00019984,2]
[359780393,1746336641060,-450.0,0.00019984,2]
[359780394,1746336641069,-450.0,0.00019984,2]
[359780395,1746336641079,-450.0,0.00019984,2]
[359780396,1746336641088,-450.0,0.00019984,2]
[359780397,1746336641098,-533.37,0.00019984,2]
[359780398,1746336641107,-450.0,0.00019984,2]
[359780399,1746336641117,-450.0,0.00019984,2]
[359780400,1746336641126,-450.0,0.00019984,2]
[359780401,1746336641135,-450.0,0.00019984,2]
[359780402,1746336641145,-450.0,0.00019984,2]
[359780403,1746336641154,-450.0,0.00019984,2]
[359780404,1746336641163,-450.0,0.00019984,2]
[359780405,1746336641173,-1000.0,0.00019984,2]
[359780406,1746336641182,-500.0,0.00019984,2]
[359780407,1746336641191,-150.0,0.00019984,2]
[359780408,1746336641201,-719.77,0.00019984,2]
[359780409,1746336641210,-450.0,0.00019984,2]
[359780410,1746336641219,-450.0,0.00019984,2]
[359780411,1746336641228,-450.0,0.00019984,2]
[359780412,1746336641237,-769.85,0.00019984,2]
[359780413,1746336641247,-450.0,0.00019984,2]
[359780414,1746336641256,-450.0,0.00019984,2]
[359780415,1746336641265,-450.0,0.00019984,2]
[359780416,1746336641275,-450.0,0.00019984,2]
[359780417,1746336641284,-387.82959739,0.00019984,2]
[359780418,1746336641293,-686.47,0.00019984,2]
[359780419,1746336641302,-1828.5,0.00019984,2]
[359780420,1746336641312,-450.0,0.00019984,2]
[359780421,1746336641321,-450.0,0.00019984,2]
[359780422,1746336641330,-450.0,0.00019984,2]
[359780423,1746336641339,-278.13311498,0.00019984,2]
[359780424,1746336641348,-65311.29,0.00019984,2]
[359780425,1746336641357,-450.0,0.00019984,2]
[359780426,1746336641366,-450.0,0.00019984,2]
[359780427,1746336641376,-450.0,0.00019984,2]
[359780428,1746336641385,-450.0,0.00019984,2]
[359780429,1746336641394,-450.0,0.00019984,2]
[359780430,1746336641403,-611.55,0.00019984,2]
[359780431,1746336641412,-4108.68,0.00019984,2]
[359780432,1746336641421,-450.0,0.00019984,2]
[359780433,1746336641430,-519.27,0.00019984,2]
[359780434,1746336641440,-1320.78,0.00019984,2]
[359780435,1746336641449,-450.0,0.00019984,2]
[359780436,1746336641458,-450.0,0.00019984,2]
[359780437,1746336641467,-500.0,0.00019984,2]
[359780438,1746336641476,-450.0,0.00019984,2]
[359780439,1746336641486,-500.0,0.00019984,2]
[359780440,1746336641495,-3416.96,0.00019984,2]
[359780441,1746336641504,-2623.2,0.00019984,2]
[359780442,1746336641514,-175.91448904,0.00019984,2]
[359780443,1746336641525,-450.0,0.00019984,2]
[359780444,1746336641540,-450.0,0.00019984,2]
[359780445,1746336641549,-1188.22,0.00019984,2]
[359780446,1746336641559,-3193.56,0.00019984,2]
[359780447,1746336641568,-560.29,0.00019984,2]
[359780448,1746336641578,-482.47,0.00019984,2]
[359780449,1746336641586,-450.0,0.00019984,2]
[359780450,1746336641595,-1508.16,0.00019984,2]
[359780451,1746336641604,-623.59,0.00019984,2]
[359780452,1746336641614,-450.0,0.00019984,2]
[359780453,1746336641623,-439.81400919,0.00019984,2]
[359780454,1746336641632,-713.79,0.00019984,2]
[359780455,1746336641641,-279.39071529,0.00019984,2]
[359780456,1746336641650,-500.0,0.00019984,2]
[359780457,1746336641659,-450.0,0.00019984,2]
[359780458,1746336641668,-3618.64,0.00019984,2]
[359780459,1746336641678,-887.73,0.00019984,2]
[359780460,1746336641687,-450.0,0.00019984,2]
[359780461,1746336641696,-450.0,0.00019984,2]
[359780462,1746336641705,-3467.02,0.00019984,2]
[359780463,1746336641715,-339.99471568,0.00019985,2]
[359780464,1746336641725,-360.86489208,0.00019985,2]
[359780465,1746336641736,-450.0,0.00019985,2]
[359780466,1746336641746,-450.0,0.00019985,2]
[359780467,1746336641756,-191.92555957,0.00019985,2]
[359780468,1746336641766,-450.0,0.00019985,2]
[359780469,1746336641775,-450.0,0.00019985,2]
[359780470,1746336641784,-1475.7,0.00019985,2]
[359780471,1746336641794,-450.0,0.00019985,2]
[359780472,1746336641803,-450.0,0.00019985,2]
[359780473,1746336641813,-455.89,0.00019985,2]
[359780474,1746336641822,-450.0,0.00019985,2]
[359780475,1746336641832,-450.0,0.00019985,2]
[359780476,1746336641841,-450.0,0.00019985,2]
[359780477,1746336641851,-509.46837617,0.00019985,2]
[359780478,1746336641860,-450.0,0.00019985,2]
[359780479,1746336641869,-450.0,0.00019985,2]
[359780480,1746336641879,-450.0,0.00019985,2]
[359780481,1746336641889,-450.0,0.00019985,2]
[359780482,1746336641898,-450.0,0.00019985,2]
[359780483,1746336641907,-611.97,0.00019985,2]
[359780484,1746336641917,-450.0,0.00019985,2]
[359780485,1746336641926,-549.02,0.00019985,2]
[359780486,1746336641935,-475.80056671,0.00019985,2]
[359780487,1746336641945,-450.0,0.00019985,2]
[359780488,1746336641955,-450.0,0.00019985,2]
[359780489,1746336641964,-450.0,0.00019985,2]
[359780490,1746336641973,-450.0,0.00019985,2]
[359780491,1746336641982,-917.52,0.00019985,2]
[359780492,1746336641991,-450.0,0.00019985,2]
[359780493,1746336642001,-505.92,0.00019985,2]
[359780494,1746336642010,-450.0,0.00019985,2]
[359780495,1746336642019,-450.0,0.00019985,2]
[359780496,1746336642028,-450.0,0.00019985,2]
[359780497,1746336642037,-711.6,0.00019985,2]
[359780498,1746336642047,-307.31363188,0.00019985,2]
[359780499,1746336642056,-450.0,0.00019985,2]
[359780500,1746336642066,-571.0,0.00019985,2]
[359780501,1746336642075,-450.0,0.00019985,2]
[359780502,1746336642087,-450.0,0.00019985,2]
[359780503,1746336642096,-450.0,0.00019985,2]
[359780504,1746336642106,-450.0,0.00019985,2]
[359780505,1746336642116,-821.9,0.00019985,2]
[359780506,1746336642127,-450.0,0.00019985,2]
[359780507,1746336642137,-450.0,0.00019985,2]
[359780508,1746336642147,-910.31,0.00019985,2]
[359780509,1746336642159,-450.0,0.00019985,2]
[359780510,1746336642168,-792.76,0.00019985,2]
[359780511,1746336642177,-450.0,0.00019985,2]
[359780512,1746336642186,-450.0,0.00019985,2]
[359780513,1746336642195,-450.0,0.00019985,2]
[359780514,1746336642205,-450.0,0.00019985,2]
[359780515,1746336642215,-450.0,0.00019985,2]
[359780516,1746336642225,-3623.7119274,0.00019986,2]
[359780517,1746336642235,-6104.3953035,0.00019986,2]
[359780518,1746336642244,-327.5186153,0.00019986,2]
[359780519,1746336642254,-103272.9168254,0.00019986,2]
[359780520,1746336642263,-168.91563715,0.0001999,2]
[359780521,1746336642272,-500.0,0.00019999,2]
[359780522,1746336642281,-666.0,0.00019999,2]
[359780523,1746336642290,-300.0,0.00019999,2]
[359780524,1746336642299,-170.36110785,0.00019999,2]
[359780525,1746336642308,-499.75,0.00019999,2]
[359780526,1746336642318,-11039.40926765,0.00019999,2]
[359780527,1746336642328,-500.0,0.00019999,2]
[359780528,1746336642338,-500.0,0.00019999,2]
[359780529,1746336642347,-500.0,0.00019999,2]
[359780530,1746336642357,-500.0,0.00019999,2]
[359780531,1746336642366,-371.05615187,0.00019999,2]
[359780532,1746336642375,-500.0,0.00019999,2]
[359780533,1746336642384,-500.0,0.00019999,2]
[359780534,1746336642393,-500.0,0.00019999,2]
[359780535,1746336642402,-243.91611927,0.00019999,2]
[359780536,1746336642412,-500.0,0.00019999,2]
[359780537,1746336642421,-250.0,0.00019999,2]
[359780538,1746336642430,-176.71981902,0.00019999,2]
[359780539,1746336642440,-163.51841799,0.00019999,2]
[359780540,1746336642450,-273.7715137,0.00019999,2]
[359780541,1746336642461,-824.0,0.00019999,2]
[359780542,1746336642471,-1142.06810715,0.0002,2]
[359780543,1746336642483,-3104556.69608873,0.0002,2]
[359780544,1746336642492,-396145.23860981,0.0002,2]
[359780545,1746336642511,-32711.23173421,0.0002,2]
[359780546,1746336642521,-183727.86810342,0.0002,2]
[359780547,1746336642533,-18502.70516237,0.0002,2]
[359780548,1746336642799,-2656.53399003,0.0002,2]
[359780554,1746336643420,-1395.0,0.000198,2]
[359780555,1746336643434,-2.713402,0.000198,2]
[359780556,1746336643443,-37994.75113503,0.0002,2]
[359780560,1746336645457,-167.43,0.00019766,2]
[359780561,1746336645466,-450.0,0.00019982,2]
[359780562,1746336645475,-572.22,0.00019984,2]
[359780563,1746336645485,-2580.28,0.00019984,2]
[359780564,1746336645494,-1579.35668136,0.0002,2]
[359780565,1746336645677,-62377.22517378,0.0002,2]
[359780566,1746336645786,-651.1875,0.0002,2]
[359780591,1746336659011,3674.0,0.00019209,2]
[359780592,1746336677786,3553.24,0.00019144,2]
[359780593,1746336733832,250.0,0.00019069,2]
[359780594,1746336752854,3018.41,0.00019041,2]
[359780595,1746336771816,450.0,0.00018986,2]
[359780596,1746336862844,5610.46,0.00018968,2]
[359780597,1746336938623,1087.27,0.00018977,2]
[359780598,1746337231817,1206.84,0.00019005,2]
[359780599,1746337501071,1000.0,0.00018928,2]
[359780601,1746337557318,256.06,0.00028,30]
[359780618,1746337699834,-276.6296521,0.000196,2]
[359780619,1746337699858,-200.0,0.0001965,2]
[359780620,1746337699882,-300.0,0.00019699,2]
[359780621,1746337699905,-2075.46,0.000197,2]
[359780622,1746337699930,-69822.66227394,0.000197,2]
[359780623,1746337710041,153.29,0.0001898,2]
[359780624,1746337728249,1054.0,0.00030137,120]
[359780629,1746337775034,-200.0,0.00019723,2]
[359780630,1746337775058,-1074.0,0.0001975,2]
[359780631,1746337775085,-236.887213,0.00019799,2]
[359780632,1746337775108,-538.95625588,0.000198,2]
[359780633,1746337775372,-207.4,0.00019876,2]
[359780634,1746337775397,-1200.0,0.00019882,2]
[359780635,1746337775420,-300.0,0.00019882,2]
[359780636,1746337775445,-4057.28202297,0.00019882,2]
[359780637,1746337775468,-160.93902893,0.00019883,2]
[359780638,1746337775491,-1491.1855,0.00019883,2]
[359780639,1746337775513,-150.99,0.00019885,2]
[359780640,1746337775536,-300.0,0.00019887,2]
[359780641,1746337775561,-999.99,0.00019888,2]
[359780642,1746337775583,-544.26,0.00019888,2]
[359780643,1746337775606,-1544.89,0.00019888,2]
[359780644,1746337775629,-4114.89,0.00019888,2]
[359780645,1746337775652,-9722.79,0.00019888,2]
[359780646,1746337775674,-389.44,0.00019888,2]
[359780647,1746337775697,-19889.37,0.00019888,2]
[359780648,1746337775721,-1387.72,0.00019888,2]
[359780649,1746337775743,-1405.02,0.00019888,2]
[359780650,1746337775766,-4865.59,0.00019888,2]
[359780651,1746337775790,-151.0,0.00019888,2]
[359780652,1746337775814,-502.0,0.0001989,2]
[359780653,1746337775846,-500.0,0.00019899,2]
[359780654,1746337775878,-568.91329042,0.00019899,2]